bitfinex-derivatives/quotes_BTCF0:USTF0_20251109
["timestamp","ask_amount","ask_price","bid_price","bid_amount"]
[1762656254258,0.16525673,101830.0,101820.0,0.05771]
[1762656254763,0.52916673,101830.0,101820.0,0.04429]
[1762656254958,0.1553255,101820.0,101810.0,0.20546648]
[1762656255159,0.53896633,101820.0,101810.0,0.20546648]
[1762656256154,0.53896633,101820.0,101810.0,0.20646648]
[1762656256350,0.53896633,101820.0,101810.0,0.30472168]
[1762656256550,0.53996633,101820.0,101810.0,0.30672168]
[1762656257461,0.53996633,101820.0,101810.0,0.27207168]
[1762656257665,0.6418785,101820.0,101810.0,0.15142648]
[1762656258260,0.6418785,101820.0,101810.0,0.17381648]
[1762656258463,0.6418785,101820.0,101810.0,0.14567198]
[1762656258666,0.6418785,101820.0,101810.0,0.14467198]
[1762656259562,0.6418785,101820.0,101810.0,0.14367198]
[1762656261364,0.53996633,101820.0,101810.0,0.14367198]
[1762656262679,0.42782083,101820.0,101810.0,0.15709198]
[1762656264666,0.06702083,101820.0,101810.0,0.25900415]
[1762656265167,0.02384083,101820.0,101810.0,0.61980415]
[1762656265559,0.04533083,101820.0,101810.0,0.61980415]
[1762656266161,0.06634083,101820.0,101810.0,0.61980415]
[1762656267270,0.06634083,101820.0,101810.0,0.51789198]
[1762656267570,0.06634083,101820.0,101810.0,0.25900415]
[1762656267880,0.06634083,101820.0,101810.0,0.61980415]
[1762656268369,0.52538653,101820.0,101810.0,0.05883648]
[1762656268569,0.52538653,101820.0,101810.0,0.15709178]
[1762656269270,0.16458653,101820.0,101810.0,0.15709178]
[1762656269477,0.16458653,101820.0,101810.0,0.51789178]
[1762656269478,0.06634083,101820.0,101810.0,0.51789178]
[1762656270271,0.16458653,101820.0,101810.0,0.66619178]
[1762656271478,0.06634083,101820.0,101810.0,0.66619178]
[1762656271663,0.16458643,101820.0,101810.0,0.66619178]
[1762656271864,0.06634083,101820.0,101810.0,0.66619178]
[1762656272168,0.06634083,101820.0,101810.0,0.76810395]
[1762656272466,0.02384083,101820.0,101810.0,0.76810395]
[1762656272669,0.4400574,101840.0,101830.0,0.155866]
[1762656272867,0.52635136,101840.0,101830.0,0.155866]
[1762656273072,0.42812506,101840.0,101830.0,0.155866]
[1762656273764,0.43112506,101840.0,101830.0,0.156866]
[1762656274087,0.02913506,101840.0,101830.0,0.25877817]
[1762656274273,0.02913506,101840.0,101830.0,0.61957817]
[1762656274472,0.00614702,101840.0,101830.0,0.61957817]
[1762656275373,0.00414702,101840.0,101830.0,0.61957817]
[1762656275565,0.00414702,101840.0,101830.0,0.6966082]
[1762656276469,0.00214702,101840.0,101830.0,0.6966082]
[1762656276663,0.02532702,101840.0,101830.0,0.6966082]
[1762656276858,0.04633702,101840.0,101830.0,0.6966082]
[1762656277271,0.02532702,101840.0,101830.0,0.6966082]
[1762656278183,0.00214702,101840.0,101830.0,0.6966082]
[1762656278675,0.00214702,101840.0,101830.0,0.59469603]
[1762656278980,0.00214702,101840.0,101830.0,0.6966082]
[1762656281875,0.00214702,101840.0,101830.0,0.8449082]
[1762656282076,0.40499,101860.0,101850.0,0.1558464]
[1762656282293,0.40499,101860.0,101850.0,0.25775857]
[1762656282473,0.02318,101860.0,101850.0,0.61855857]
[1762656282673,0.04419,101860.0,101850.0,0.61855857]
[1762656282863,0.02318,101860.0,101850.0,0.61855857]
[1762656283065,0.5161138,101880.0,101870.0,0.04477]
[1762656283271,0.53905345,101880.0,101870.0,0.04477]
[1762656283470,0.53905345,101880.0,101870.0,0.05763]
[1762656284178,0.54505345,101880.0,101870.0,0.05863]
[1762656284391,0.55205345,101880.0,101870.0,0.05963]
[1762656285177,0.55205345,101880.0,101870.0,0.1578272]
[1762656286281,0.55205345,101880.0,101870.0,0.04677]
[1762656286480,0.55205345,101880.0,101870.0,0.1449672]
[1762656286680,0.55205345,101880.0,101870.0,0.04677]
[1762656286873,0.55205345,101880.0,101870.0,0.1449672]
[1762656287682,0.55205345,101880.0,101870.0,0.04677]
[1762656287882,0.65396562,101880.0,101870.0,0.04677]
[1762656288081,0.65396562,101880.0,101870.0,0.1449672]
[1762656288280,0.65396562,101880.0,101870.0,0.04677]
[1762656288785,0.65396562,101880.0,101870.0,0.1449672]
[1762656289379,0.65396562,101880.0,101870.0,0.04677]
[1762656290180,0.65396562,101880.0,101870.0,0.02411]
[1762656291077,0.65396562,101880.0,101870.0,0.002]
[1762656292078,0.688886,101880.0,101870.0,0.002]
[1762656292282,0.05456,101870.0,101860.0,0.00014702]
[1762656292476,0.63840902,101870.0,101860.0,0.00014702]
[1762656293374,0.64340902,101870.0,101860.0,0.00114702]
[1762656293583,0.64840902,101870.0,101860.0,0.00114702]
[1762656294087,0.64840902,101870.0,101860.0,0.12227392]
[1762656294281,0.6833294,101870.0,101860.0,0.14382392]
[1762656294584,0.64837163,101870.0,101860.0,0.14382392]
[1762656295185,0.68329201,101870.0,101860.0,0.14382392]
[1762656295576,0.68229201,101870.0,101860.0,0.14382392]
[1762656295777,0.64737163,101870.0,101860.0,0.14382392]
[1762656296179,0.64637163,101870.0,101860.0,0.14382392]
[1762656296805,0.64637163,101870.0,101860.0,0.04561702]
[1762656297177,0.64637163,101870.0,101860.0,0.14382392]
[1762656298687,0.64637163,101870.0,101860.0,0.04561702]
[1762656298983,0.64637163,101870.0,101860.0,0.14382392]
[1762656300692,0.64637163,101870.0,101860.0,0.00114702]
[1762656300893,0.74824641,101870.0,101860.0,0.00114702]
[1762656301093,0.64637163,101870.0,101860.0,0.04606702]
[1762656302186,0.68129201,101870.0,101860.0,0.04606702]
[1762656302386,0.68129201,101870.0,101860.0,0.14427392]
[1762656302794,0.68129201,101870.0,101860.0,0.00114702]
[1762656304882,0.73367258,101870.0,101860.0,0.00114702]
[1762656306595,0.68129201,101870.0,101860.0,0.00114702]
[1762656307196,0.73367258,101870.0,101860.0,0.00114702]
[1762656307395,0.6317978,101870.0,101860.0,0.15717392]
[1762656307695,0.56848723,101870.0,101860.0,0.2590487]
[1762656307899,0.17276685,101870.0,101860.0,0.2590487]
[1762656308099,0.53356685,101870.0,101860.0,0.2590487]
[1762656309005,0.43536965,101870.0,101860.0,0.2590487]
[1762656309304,0.53356685,101870.0,101860.0,0.2590487]
[1762656309502,0.43536965,101870.0,101860.0,0.2590487]
[1762656309709,0.17276695,101870.0,101860.0,0.15717392]
[1762656310303,0.07456965,101870.0,101860.0,0.15717392]
[1762656310602,0.07456965,101870.0,101860.0,0.2590487]
[1762656310803,0.03093965,101870.0,101860.0,0.36092348]
[1762656311102,0.03093965,101870.0,101860.0,0.72172348]
[1762656311803,0.008,101870.0,101860.0,0.72172348]
[1762656312304,0.03019,101870.0,101860.0,0.72172348]
[1762656312693,0.008,101870.0,101860.0,0.72172348]
[1762656314715,0.05308,101870.0,101860.0,0.72172348]
[1762656314914,0.05308,101870.0,101860.0,0.6198487]
[1762656315110,0.008,101870.0,101860.0,0.72172348]
[1762656319121,0.05308,101870.0,101860.0,0.6198487]
[1762656319323,0.07640475,101870.0,101860.0,0.6198487]
[1762656319923,0.07640475,101870.0,101860.0,0.7681487]
[1762656320325,0.07640475,101870.0,101860.0,0.4073487]
[1762656321416,0.07640475,101870.0,101860.0,0.7681487]
[1762656321819,0.05351475,101870.0,101860.0,0.7681487]
[1762656322009,0.07640475,101870.0,101860.0,0.7681487]
[1762656322626,0.17460225,101870.0,101860.0,0.7681487]
[1762656323017,0.07640475,101870.0,101860.0,0.7681487]
[1762656323217,0.17460215,101870.0,101860.0,0.7681487]
[1762656324828,0.07640475,101870.0,101860.0,0.7681487]
[1762656327631,0.05351475,101870.0,101860.0,0.7681487]
[1762656327828,0.03132475,101870.0,101860.0,0.7681487]
[1762656328123,0.008,101870.0,101860.0,0.7681487]
[1762656329027,0.008,101870.0,101860.0,0.87002348]
[1762656330025,0.03072,101870.0,101860.0,0.87002348]
[1762656330227,0.03072,101870.0,101860.0,0.7681487]
[1762656330431,0.05346,101870.0,101860.0,0.7681487]
[1762656330627,0.1516575,101870.0,101860.0,0.7681487]
[1762656330831,0.65086208,101870.0,101860.0,0.19436702]
[1762656331730,0.65086208,101870.0,101860.0,0.04606702]
[1762656332830,0.65086208,101870.0,101860.0,0.14427422]
[1762656334433,0.68578246,101870.0,101860.0,0.04606702]
[1762656334734,0.68578246,101870.0,101860.0,0.14427412]
[1762656335035,0.68578246,101870.0,101860.0,0.04606702]
[1762656335737,0.68578246,101870.0,101860.0,0.14427412]
[1762656335935,0.58390768,101870.0,101860.0,0.15747412]
[1762656336236,0.65086208,101870.0,101860.0,0.15747412]
[1762656339726,0.61491208,101870.0,101860.0,0.15747412]
[1762656339922,0.4375798,101870.0,101860.0,0.2593489]
[1762656340334,0.5357773,101870.0,101860.0,0.15747412]
[1762656340534,0.5357773,101870.0,101860.0,0.2593489]
[1762656340744,0.5357773,101870.0,101860.0,0.15747412]
[1762656340935,0.5489873,101870.0,101860.0,0.04606702]
[1762656341235,0.5489873,101870.0,101860.0,0.14427412]
[1762656341633,0.65086208,101870.0,101860.0,0.14427412]
[1762656344330,0.65086208,101870.0,101860.0,0.15747412]
[1762656344331,0.1749773,101870.0,101860.0,0.15747412]
[1762656344525,0.4375798,101870.0,101860.0,0.2593489]
[1762656344730,0.0767798,101870.0,101860.0,0.2593489]
[1762656344939,0.1749771,101870.0,101860.0,0.2593489]
[1762656345335,0.0540398,101870.0,101860.0,0.2593489]
[1762656345539,0.0313198,101870.0,101860.0,0.2593489]
[1762656345928,0.0313198,101870.0,101860.0,0.36122368]
[1762656346134,0.0313198,101870.0,101860.0,0.2593489]
[1762656346434,0.008,101870.0,101860.0,0.2593489]
[1762656346736,0.008,101870.0,101860.0,0.36122368]
[1762656347642,0.008,101870.0,101860.0,0.72202368]
[1762656348635,0.008,101870.0,101860.0,0.6201489]
[1762656348942,0.0307,101870.0,101860.0,0.6201489]
[1762656349243,0.05312,101870.0,101860.0,0.7684489]
[1762656351643,0.0307,101870.0,101860.0,0.7684489]
[1762656352031,0.008,101870.0,101860.0,0.87032368]
[1762656354436,0.05312,101870.0,101860.0,0.76840422]
[1762656354637,0.1513173,101870.0,101860.0,0.20756702]
[1762656354838,0.54888609,101870.0,101860.0,0.30577402]
[1762656355039,0.5254873,101870.0,101860.0,0.20756702]
[1762656355245,0.18808512,101870.0,101860.0,0.30577402]
[1762656355543,0.54888512,101870.0,101860.0,0.30577402]
[1762656356648,0.53551512,101870.0,101860.0,0.30577402]
[1762656358155,0.53551512,101870.0,101860.0,0.20756702]
[1762656358343,0.53551512,101870.0,101860.0,0.30577392]
[1762656361347,0.65015522,101870.0,101860.0,0.19436702]
[1762656361556,0.54832512,101870.0,101860.0,0.29257402]
[1762656362449,0.07651782,101870.0,101860.0,0.30618402]
[1762656362749,0.18752512,101870.0,101860.0,0.30618402]
[1762656363145,0.54832512,101870.0,101860.0,0.30618402]
[1762656363853,0.54832512,101870.0,101860.0,0.19436702]
[1762656364046,0.65015522,101870.0,101860.0,0.14944702]
[1762656364245,0.6850756,101870.0,101860.0,0.14944702]
[1762656365457,0.6850756,101870.0,101860.0,0.24765402]
[1762656365753,0.5832455,101870.0,101860.0,0.14944702]
[1762656365960,0.6850756,101870.0,101860.0,0.14944702]
[1762656366352,0.73745617,101870.0,101860.0,0.14944702]
[1762656366946,0.73745617,101870.0,101860.0,0.00114702]
[1762656368256,0.63562607,101870.0,101860.0,0.00114702]
[1762656368557,0.73745617,101870.0,101860.0,0.00114702]
[1762656370542,0.6850756,101870.0,101860.0,0.00114702]
[1762656372058,0.6850756,101870.0,101860.0,0.14215402]
[1762656372247,0.5832455,101870.0,101860.0,0.15576402]
[1762656372648,0.53551512,101870.0,101860.0,0.15576402]
[1762656374254,0.43731782,101870.0,101860.0,0.15576402]
[1762656375057,0.43731782,101870.0,101860.0,0.25759412]
[1762656375261,0.07651782,101870.0,101860.0,0.15576402]
[1762656375561,0.07651782,101870.0,101860.0,0.51656402]
[1762656376055,0.07651782,101870.0,101860.0,0.61839412]
[1762656376857,0.07651782,101870.0,101860.0,0.51656402]
[1762656377459,0.17471512,101870.0,101860.0,0.51656402]
[1762656377762,0.17471512,101870.0,101860.0,0.61839412]
[1762656378457,0.07651782,101870.0,101860.0,0.61839412]
[1762656378761,0.06851782,101870.0,101860.0,0.76569412]
[1762656378964,0.07151782,101870.0,101860.0,0.76669412]
[1762656381669,0.16971512,101870.0,101860.0,0.76669412]
[1762656383567,0.04909782,101870.0,101860.0,0.76669412]
[1762656383770,0.02639782,101870.0,101860.0,0.76669412]
[1762656384474,0.02639782,101870.0,101860.0,0.61839412]
[1762656386271,0.07002782,101870.0,101860.0,0.61839412]
[1762656386464,0.16822512,101870.0,101860.0,0.15576402]
[1762656387965,0.07002782,101870.0,101860.0,0.15576402]
[1762656388365,0.07002782,101870.0,101860.0,0.51656402]
[1762656388568,0.02639782,101870.0,101860.0,0.61839412]
[1762656390271,0.02639782,101870.0,101860.0,0.76669412]
[1762656390573,0.003,101870.0,101860.0,0.76669412]
[1762656391575,0.0267571,101870.0,101860.0,0.76669412]
[1762656391967,0.003,101870.0,101860.0,0.66486402]
[1762656392169,0.003,101870.0,101860.0,0.76669412]
[1762656398587,0.04329702,101890.0,101880.0,0.1572677]
[1762656398777,0.16516244,101890.0,101880.0,0.2590978]
[1762656398979,0.06698434,101890.0,101880.0,0.6198978]
[1762656399681,0.07098434,101890.0,101880.0,0.6198978]
[1762656400090,0.07598434,101890.0,101880.0,0.6208978]
[1762656401778,0.07198434,101890.0,101880.0,0.6208978]
[1762656401975,0.02983434,101890.0,101880.0,0.7691978]
[1762656402487,0.02483434,101890.0,101880.0,0.7681978]
[1762656402797,0.00214702,101890.0,101880.0,0.7681978]
[1762656403580,0.00214702,101890.0,101880.0,0.8700279]
[1762656405878,0.00214702,101890.0,101880.0,0.7681978]
[1762656406693,0.00214702,101890.0,101880.0,0.84654092]
[1762656411415,0.04550702,101890.0,101880.0,0.74471082]
[1762656411600,0.14368512,101890.0,101880.0,0.64652312]
[1762656411800,0.54103329,101890.0,101880.0,0.28572312]
[1762656411991,0.54103329,101890.0,101880.0,0.38391082]
[1762656412192,0.54103329,101890.0,101880.0,0.28572312]
[1762656412593,0.54103329,101890.0,101880.0,0.38391082]
[1762656412793,0.54103329,101890.0,101880.0,0.3055677]
[1762656412995,0.54103329,101890.0,101880.0,0.20738]
[1762656413400,0.54103329,101890.0,101880.0,0.3055677]
[1762656413702,0.54103329,101890.0,101880.0,0.04553]
[1762656414407,0.64286249,101890.0,101880.0,0.1437177]
[1762656414605,0.64286249,101890.0,101880.0,0.02316]
[1762656415706,0.1539776,101880.0,101870.0,0.3034517]
[1762656415918,0.53844577,101880.0,101870.0,0.3034517]
[1762656416321,0.64027497,101880.0,101870.0,0.1416017]
[1762656418022,0.64027497,101880.0,101870.0,0.1426017]
[1762656418523,0.64227497,101880.0,101870.0,0.1426017]
[1762656418823,0.64527497,101880.0,101870.0,0.1426017]
[1762656421323,0.64527497,101880.0,101870.0,0.0991917]
[1762656421519,0.64527497,101880.0,101870.0,0.1425217]
[1762656421823,0.64527497,101880.0,101860.0,0.00014702]
[1762656421824,0.1535773,101870.0,101860.0,0.00014702]
[1762656422033,0.1535966,101850.0,101840.0,0.04333]
[1762656422217,0.6162258,101850.0,101840.0,0.04333]
[1762656422414,0.41618,101850.0,101840.0,0.1548863]
[1762656422624,0.04264,101850.0,101840.0,0.2567155]
[1762656422922,0.04264,101850.0,101840.0,0.6175155]
[1762656423121,0.04278702,101860.0,101850.0,0.1548766]
[1762656423317,0.06641832,101860.0,101850.0,0.6175058]
[1762656423522,0.04278702,101860.0,101850.0,0.6175058]
[1762656423728,0.00014702,101860.0,101850.0,0.6175058]
[1762656425233,0.00014702,101860.0,101850.0,0.6185058]
[1762656425728,0.04278702,101860.0,101850.0,0.6185058]
[1762656426620,0.00014702,101860.0,101850.0,0.5166766]
[1762656426821,0.00014702,101860.0,101850.0,0.6185058]
[1762656426822,0.02168702,101860.0,101850.0,0.6185058]
[1762656427034,0.14099402,101860.0,101850.0,0.6185058]
[1762656427231,0.04278702,101860.0,101850.0,0.6185058]
[1762656427622,0.04378702,101860.0,101850.0,0.6175058]
[1762656427828,0.04578702,101860.0,101850.0,0.6175058]
[1762656428331,0.04578702,101860.0,101850.0,0.7658058]
[1762656429538,0.00314702,101860.0,101850.0,0.7658058]
[1762656429834,0.02468702,101860.0,101850.0,0.7658058]
[1762656430633,0.00314702,101860.0,101850.0,0.7658058]
[1762656432226,0.0004772,101860.0,101850.0,0.7658058]
[1762656433427,0.0004772,101860.0,101850.0,0.867635]
[1762656433828,0.00014702,101870.0,101860.0,0.154867]
[1762656434031,0.00014702,101870.0,101860.0,0.7193254]
[1762656434330,0.00014702,101870.0,101860.0,0.8676254]
[1762656435633,0.00114702,101870.0,101860.0,0.8676254]
[1762656436034,0.00014702,101870.0,101860.0,0.8676254]
[1762656436234,0.02168702,101870.0,101860.0,0.8686254]
[1762656436735,0.02168702,101870.0,101860.0,0.7667962]
[1762656436937,0.02268702,101870.0,101860.0,0.8686254]
[1762656438232,0.02368702,101870.0,101860.0,0.8676254]
[1762656438434,0.00214702,101870.0,101860.0,0.8676254]
[1762656439741,0.04478702,101870.0,101860.0,0.663967]
[1762656440039,0.14298442,101870.0,101860.0,0.4049962]
[1762656442046,0.14298442,101870.0,101860.0,0.303167]
[1762656442240,0.14298442,101870.0,101860.0,0.4049962]
[1762656442746,0.24779362,101870.0,101860.0,0.303167]
[1762656442943,0.27145943,101870.0,101860.0,0.303167]
[1762656444242,0.63225943,101870.0,101860.0,0.303167]
[1762656446039,0.63225943,101870.0,101860.0,0.154867]
[1762656447845,0.154897,101860.0,101850.0,0.1572204]
[1762656448045,0.64119201,101860.0,101850.0,0.1572204]
[1762656449349,0.64119201,101860.0,101850.0,0.1458904]
[1762656450049,0.6175262,101860.0,101850.0,0.1458904]
[1762656450249,0.64318923,101860.0,101850.0,0.1458904]
[1762656450939,0.64518923,101860.0,101850.0,0.1438904]
[1762656451540,0.54336003,101860.0,101850.0,0.1571904]
[1762656451740,0.64318923,101860.0,101850.0,0.1571904]
[1762656452034,0.64518923,101860.0,101850.0,0.1571904]
[1762656452541,0.64318923,101860.0,101850.0,0.1571904]
[1762656452739,0.64518923,101860.0,101850.0,0.04568]
[1762656452940,0.64518923,101860.0,101850.0,0.1438966]
[1762656454243,0.64518923,101860.0,101850.0,0.1571966]
[1762656455142,0.64511761,101860.0,101850.0,0.1571966]
[1762656457750,0.64511761,101860.0,101850.0,0.1438964]
[1762656457946,0.64511761,101860.0,101850.0,0.1571964]
[1762656463147,0.28431761,101860.0,101850.0,0.1571964]
[1762656463352,0.27157761,101860.0,101850.0,0.1571964]
[1762656463750,0.07154141,101860.0,101850.0,0.2590256]
[1762656463956,0.05022141,101860.0,101850.0,0.6198256]
[1762656464346,0.07054141,101860.0,101850.0,0.5179964]
[1762656464654,0.06854141,101860.0,101850.0,0.6198256]
[1762656464851,0.04595,101860.0,101850.0,0.6198256]
[1762656465050,0.002,101860.0,101850.0,0.6198256]
[1762656467356,0.04570702,101870.0,101860.0,0.1573868]
[1762656467554,0.0692978,101870.0,101860.0,0.620016]
[1762656468350,0.06929991,101870.0,101860.0,0.620016]
[1762656468552,0.07129991,101870.0,101860.0,0.620016]
[1762656469560,0.02573991,101870.0,101860.0,0.8701452]
[1762656471161,0.00214702,101870.0,101860.0,0.8701452]
[1762656474463,0.00214702,101870.0,101860.0,0.7683077]
[1762656475360,0.00214702,101870.0,101860.0,0.6200077]
[1762656477265,0.00214702,101870.0,101860.0,0.5181868]
[1762656477451,0.00214702,101870.0,101860.0,0.6200077]
[1762656481166,0.00214702,101870.0,101860.0,0.7683077]
[1762656481460,0.55012628,101900.0,101890.0,0.1419378]
[1762656481668,0.57370892,101900.0,101890.0,0.1419378]
[1762656481853,0.57370892,101900.0,101890.0,0.1548978]
[1762656481854,0.17798854,101900.0,101890.0,0.1548978]
[1762656482059,0.06618264,101900.0,101890.0,0.2567187]
[1762656482258,0.06618264,101900.0,101890.0,0.1548978]
[1762656482866,0.07018264,101900.0,101890.0,0.1548978]
[1762656483260,0.16835084,101900.0,101890.0,0.1548978]
[1762656483569,0.16835084,101900.0,101890.0,0.2567187]
[1762656483570,0.06918264,101900.0,101890.0,0.2567187]
[1762656483860,0.07418264,101900.0,101890.0,0.6185187]
[1762656484367,0.0486,101900.0,101890.0,0.6185187]
[1762656486173,0.006,101900.0,101890.0,0.6185187]
[1762656492973,0.006,101900.0,101890.0,0.7668187]
[1762656497489,0.02956825,101900.0,101890.0,0.7668187]
[1762656502790,0.07216825,101900.0,101890.0,0.7668187]
[1762656504077,0.17033645,101900.0,101890.0,0.7668187]
[1762656504283,0.17033645,101900.0,101890.0,0.6649978]
[1762656504581,0.07216825,101900.0,101890.0,0.6649978]
[1762656505482,0.17033645,101900.0,101890.0,0.6649978]
[1762656506480,0.05060825,101900.0,101890.0,0.6649978]
[1762656506684,0.17045645,101900.0,101890.0,0.6649978]
[1762656507998,0.17045645,101900.0,101890.0,0.3041978]
[1762656508492,0.05060825,101900.0,101890.0,0.6649978]
[1762656508892,0.05060825,101900.0,101890.0,0.7668187]
[1762656510597,0.02956825,101900.0,101890.0,0.7668187]
[1762656512391,0.02941677,101900.0,101890.0,0.7668187]
[1762656512690,0.17156507,101900.0,101890.0,0.7668187]
[1762656512894,0.17156507,101900.0,101890.0,0.6686409]
[1762656513195,0.17156507,101900.0,101890.0,0.56682]
[1762656514090,0.17156507,101900.0,101890.0,0.6649979]
[1762656515691,0.07339677,101900.0,101890.0,0.6649979]
[1762656515985,0.07339677,101900.0,101890.0,0.7668188]
[1762656516189,0.10831715,101900.0,101890.0,0.7668188]
[1762656517498,7e-08,101910.0,101900.0,0.1437582]
[1762656517792,0.21016952,101930.0,101920.0,0.139669]
[1762656518302,0.21016952,101930.0,101920.0,0.2414899]
[1762656518599,0.20916952,101930.0,101920.0,0.2414899]
[1762656518796,0.00014702,101940.0,101930.0,0.0981393]
[1762656519097,0.00014702,101940.0,101930.0,0.9215602]
[1762656519594,0.00014702,101940.0,101930.0,0.99858545]
[1762656520690,0.00014702,101940.0,101930.0,0.99958545]
[1762656525197,0.05714,101970.0,101960.0,0.0981106]
[1762656525596,0.05768,101950.0,101940.0,0.0981224]
[1762656525999,0.05768,101950.0,101940.0,0.1999433]
[1762656526302,0.05768,101950.0,101940.0,0.9215433]
[1762656526892,0.05868,101950.0,101940.0,0.9215433]
[1762656527301,0.05968,101950.0,101940.0,0.9215433]
[1762656528210,0.002,101950.0,101940.0,0.96897735]
[1762656528410,0.002,101950.0,101940.0,1.07079825]
[1762656528600,0.002,101950.0,101940.0,0.8197224]
[1762656528910,0.05968,101950.0,101940.0,0.9215433]
[1762656530494,0.05968,101950.0,101940.0,0.8197224]
[1762656530704,0.05968,101950.0,101940.0,0.9215433]
[1762656531011,0.05968,101950.0,101940.0,1.0698433]
[1762656534512,0.1578003,101950.0,101940.0,0.5091]
[1762656534705,0.2596212,101950.0,101940.0,0.1483]
[1762656534903,0.6204212,101950.0,101940.0,0.1483]
[1762656535207,0.5186003,101950.0,101940.0,0.1483]
[1762656536017,0.5186003,101950.0,101940.0,0.2464299]
[1762656536310,0.62030937,101950.0,101940.0,0.2464299]
[1762656536909,0.62030937,101950.0,101940.0,0.0981299]
[1762656537416,0.5186003,101950.0,101940.0,0.0981299]
[1762656537714,0.62030937,101950.0,101940.0,0.0981299]
[1762656541126,0.1565999,101940.0,101930.0,0.17531087]
[1762656541320,0.72081804,101940.0,101930.0,0.07717227]
[1762656541519,0.72081804,101940.0,101930.0,0.00014702]
[1762656541713,0.1566095,101930.0,101920.0,0.0981425]
[1762656541914,0.1566191,101920.0,101910.0,0.4589525]
[1762656542419,0.25832817,101920.0,101910.0,0.0981525]
[1762656542619,0.1566287,101910.0,101900.0,0.56067107]
[1762656543024,0.1566287,101910.0,101900.0,0.64107164]
[1762656543224,0.1566288,101910.0,101900.0,0.64107164]
[1762656543708,0.25833787,101910.0,101900.0,0.53936257]
[1762656543912,0.25833787,101910.0,101900.0,0.19696257]
[1762656543913,0.23477018,101910.0,101900.0,0.19696257]
[1762656544128,0.25506018,101910.0,101900.0,0.19696257]
[1762656545234,0.15335111,101910.0,101900.0,0.19696257]
[1762656545411,0.15335111,101910.0,101900.0,0.29867164]
[1762656545616,0.05519231,101910.0,101900.0,0.29867164]
[1762656545818,0.05519231,101910.0,101900.0,0.65947164]
[1762656546021,0.15335111,101910.0,101900.0,0.65947164]
[1762656546713,0.25506018,101910.0,101900.0,0.09880057]
[1762656546912,0.25506018,101910.0,101900.0,0.10208057]
[1762656547215,0.25706018,101910.0,101900.0,0.10208057]
[1762656547822,0.61786018,101910.0,101900.0,0.10208057]
[1762656548332,0.61886018,101910.0,101900.0,0.20024897]
[1762656551221,0.1566383,101900.0,101890.0,0.00014702]
[1762656551521,0.36005644,101900.0,101890.0,0.00014702]
[1762656551715,0.72085644,101900.0,101890.0,0.00014702]
[1762656552029,0.59557638,101900.0,101890.0,0.09832492]
[1762656552231,0.61886638,101900.0,101890.0,0.09832492]
[1762656552615,0.61986638,101900.0,101890.0,0.12165492]
[1762656554425,0.72157545,101900.0,101890.0,0.08009219]
[1762656556729,0.72157545,101900.0,101890.0,0.00014702]
[1762656559330,0.1566478,101890.0,101880.0,7.592e-05]
[1762656559525,0.61915687,101890.0,101880.0,7.592e-05]
[1762656560132,0.59558087,101890.0,101880.0,7.592e-05]
[1762656560327,0.59558087,101890.0,101880.0,0.12159342]
[1762656560535,0.59558087,101890.0,101880.0,0.14371342]
[1762656560832,0.61915697,101890.0,101880.0,0.14371342]
[1762656561233,0.61915697,101890.0,101880.0,0.14471342]
[1762656561537,0.61915697,101890.0,101880.0,0.04652592]
[1762656561723,0.61915697,101890.0,101880.0,0.14471342]
[1762656562230,0.61915697,101890.0,101880.0,0.04552592]
[1762656562432,0.62215697,101890.0,101880.0,0.04452592]
[1762656562633,0.62215697,101890.0,101880.0,7.592e-05]
[1762656562826,0.62215697,101890.0,101880.0,0.12159342]
[1762656563234,0.62515697,101890.0,101880.0,0.12159342]
[1762656563436,0.62515697,101890.0,101880.0,0.02340592]
[1762656563633,0.62515697,101890.0,101880.0,7.592e-05]
[1762656563846,0.62215697,101890.0,101880.0,7.592e-05]
[1762656564034,0.62615697,101890.0,101880.0,0.00107592]
[1762656564232,0.62615697,101890.0,101880.0,0.08069125]
[1762656565033,0.62615697,101890.0,101880.0,0.00107592]
[1762656567130,0.5244479,101890.0,101880.0,0.00107592]
[1762656567327,0.62615697,101890.0,101880.0,0.02440592]
[1762656567836,0.62615697,101890.0,101880.0,0.00107592]
[1762656568237,0.62385015,101890.0,101880.0,0.02287592]
[1762656568439,0.62385015,101890.0,101880.0,0.00107592]
[1762656572236,0.64571804,101890.0,101880.0,0.00107592]
[1762656576237,0.54400897,101890.0,101880.0,0.00107592]
[1762656576444,0.64571804,101890.0,101880.0,0.00107592]
[1762656577144,0.68079765,101890.0,101880.0,0.00107592]
[1762656579249,0.68079765,101890.0,101880.0,0.09926342]
[1762656579454,0.57908858,101890.0,101880.0,0.14375342]
[1762656579654,0.18320897,101890.0,101880.0,0.24546249]
[1762656579949,0.18320897,101890.0,101880.0,0.60626249]
[1762656580850,0.18320897,101890.0,101880.0,0.61892249]
[1762656581252,0.28491804,101890.0,101880.0,0.50455342]
[1762656581458,0.64571804,101890.0,101880.0,0.14375342]
[1762656581859,0.28491804,101890.0,101880.0,0.14375342]
[1762656582466,0.64571804,101890.0,101880.0,0.14375342]
[1762656583258,0.28491804,101890.0,101880.0,0.14375342]
[1762656583864,0.64571804,101890.0,101880.0,0.14375342]
[1762656584064,0.28491804,101890.0,101880.0,0.14375342]
[1762656585169,0.18320897,101890.0,101880.0,0.14375342]
[1762656586466,0.18320897,101890.0,101880.0,0.15710342]
[1762656587360,0.08503107,101890.0,101880.0,0.61961249]
[1762656587567,0.06493107,101890.0,101880.0,0.61861249]
[1762656587871,0.06693107,101890.0,101880.0,0.61861249]
[1762656588962,0.06693107,101890.0,101880.0,0.72032156]
[1762656589266,0.06693107,101890.0,101880.0,0.61861249]
[1762656589968,0.02386789,101890.0,101880.0,0.61861249]
[1762656590273,0.04666789,101890.0,101880.0,0.61861249]
[1762656590461,0.06940789,101890.0,101880.0,0.61861249]
[1762656591459,0.16758569,101890.0,101880.0,0.61861249]
[1762656592569,0.16758569,101890.0,101880.0,0.76691249]
[1762656592871,0.18050569,101890.0,101880.0,0.76691249]
[1762656593064,0.16758569,101890.0,101880.0,0.76691249]
[1762656594562,0.06940789,101890.0,101880.0,0.76691249]
[1762656597568,0.16758619,101890.0,101880.0,0.76691249]
[1762656598070,0.06940789,101890.0,101880.0,0.86862156]
[1762656598270,0.04341702,101900.0,101890.0,0.1560483]
[1762656598572,0.17734213,101900.0,101890.0,0.1560483]
[1762656598774,0.06533343,101900.0,101890.0,0.1560483]
[1762656599474,0.17834223,101900.0,101890.0,0.1560483]
[1762656600174,0.18134223,101900.0,101890.0,0.1560483]
[1762656601374,0.54214223,101900.0,101890.0,0.1422781]
[1762656602374,0.18134223,101900.0,101890.0,0.1422781]
[1762656602581,0.08317343,101900.0,101890.0,0.1560481]
[1762656603566,0.06933343,101900.0,101890.0,0.61863244]
[1762656604265,0.06933343,101900.0,101890.0,0.76693244]
[1762656605671,0.02606343,101900.0,101890.0,0.76693244]
[1762656605880,0.06933343,101900.0,101890.0,0.76693244]
[1762656606176,0.04741702,101900.0,101890.0,0.81961963]
[1762656606373,0.04741702,101900.0,101890.0,0.67131963]